bitfinex-derivatives/quotes_BTCF0:USTF0_20250528
["timestamp","ask_amount","ask_price","bid_price","bid_amount"]
[1748444670865,1.36039023,107570.0,107560.0,0.69149876]
[1748444671366,1.36039023,107570.0,107560.0,0.66619369]
[1748444671367,1.45335823,107570.0,107560.0,0.66619369]
[1748444671576,1.45335823,107570.0,107560.0,0.69159853]
[1748444672267,1.45335823,107570.0,107560.0,0.6915986]
[1748444672570,1.45335823,107570.0,107560.0,0.69159667]
[1748444672763,0.90028726,107570.0,107560.0,0.69159575]
[1748444672968,0.90028726,107570.0,107560.0,0.6915894]
[1748444673166,0.81367023,107570.0,107560.0,0.69158837]
[1748444673470,0.81367023,107570.0,107560.0,0.75528746]
[1748444673471,1.30226022,107570.0,107560.0,0.75528746]
[1748444673673,1.30226022,107570.0,107560.0,0.72368742]
[1748444673970,1.33982327,107570.0,107560.0,0.72368746]
[1748444674174,1.22982327,107570.0,107560.0,0.72368746]
[1748444674374,1.22982327,107570.0,107560.0,0.72354869]
[1748444674573,1.28755328,107570.0,107560.0,0.69144869]
[1748444674774,1.37417031,107570.0,107560.0,0.69144869]
[1748444674968,1.3195283,107570.0,107560.0,0.62683174]
[1748444675172,1.67271127,107570.0,107560.0,0.61243257]
[1748444675365,1.44535868,107570.0,107560.0,0.62696403]
[1748444675569,1.44535868,107570.0,107560.0,0.6269642]
[1748444675773,1.44535868,107570.0,107560.0,0.62699035]
[1748444676074,1.88543868,107570.0,107560.0,0.58050026]
[1748444676265,1.88543868,107570.0,107560.0,0.53399662]
[1748444676466,0.1858884,107550.0,107540.0,0.02937509]
[1748444676664,1.55939476,107550.0,107540.0,0.02937509]
[1748444676875,1.62419476,107550.0,107540.0,0.02937509]
[1748444677372,1.18411476,107550.0,107540.0,0.02937509]
[1748444677577,1.62403476,107550.0,107540.0,0.02937509]
[1748444677877,1.61488675,107550.0,107540.0,0.03137509]
[1748444678178,1.17604675,107550.0,107540.0,0.03237509]
[1748444678471,1.61588675,107550.0,107540.0,0.03237509]
[1748444678677,1.61588675,107550.0,107540.0,0.06517509]
[1748444679077,1.06960675,107550.0,107540.0,0.06517509]
[1748444679474,1.50928675,107550.0,107540.0,0.06517509]
[1748444679674,1.06960675,107550.0,107540.0,0.06517509]
[1748444679972,1.50924675,107550.0,107540.0,0.06517509]
[1748444681275,1.50924675,107550.0,107540.0,0.03237509]
[1748444682578,1.50944675,107550.0,107540.0,0.03237509]
[1748444682777,1.03750675,107550.0,107540.0,0.06367509]
[1748444682980,1.4397437,107550.0,107540.0,0.06367509]
[1748444683273,1.37679528,107550.0,107540.0,0.24958079]
[1748444683476,0.93699528,107550.0,107540.0,0.06367509]
[1748444683679,1.37675528,107550.0,107540.0,0.24958079]
[1748444683876,1.37667528,107550.0,107540.0,0.24958079]
[1748444684081,1.37667528,107550.0,107540.0,0.06367509]
[1748444684675,1.40757528,107550.0,107540.0,0.06367509]
[1748444684878,1.39885688,107550.0,107540.0,0.06367509]
[1748444685376,1.38769718,107550.0,107540.0,0.06367509]
[1748444686687,1.38769718,107550.0,107540.0,0.24958079]
[1748444686884,0.91711718,107550.0,107540.0,0.24958079]
[1748444687075,0.76017489,107550.0,107540.0,0.24958079]
[1748444687384,0.36093952,107560.0,107540.0,1.11163171]
[1748444687582,0.42001847,107570.0,107560.0,0.1858711]
[1748444687884,0.42001847,107570.0,107560.0,0.2923111]
[1748444687885,0.54804906,107570.0,107560.0,0.2923111]
[1748444688078,0.54804906,107570.0,107560.0,0.3242111]
[1748444688478,0.54804906,107570.0,107560.0,0.34963322]
[1748444688479,0.00139516,107570.0,107560.0,0.34963322]
[1748444688676,0.19997157,107580.0,107570.0,0.1858539]
[1748444688881,0.19997157,107580.0,107570.0,0.24317602]
[1748444689087,0.19996227,107580.0,107570.0,0.24317602]
[1748444689389,0.56076227,107580.0,107570.0,0.24317602]
[1748444689682,0.56076227,107580.0,107570.0,0.24317225]
[1748444689979,0.56076227,107580.0,107570.0,0.29499873]
[1748444690483,0.56176227,107580.0,107570.0,0.29499873]
[1748444690889,0.53906134,107580.0,107570.0,0.29499873]
[1748444691088,0.53906134,107580.0,107570.0,0.29499884]
[1748444691582,0.53906134,107580.0,107570.0,0.24317192]
[1748444691781,0.002,107580.0,107570.0,0.28510541]
[1748444691982,0.002,107580.0,107570.0,1.02166501]
[1748444692283,0.001,107580.0,107570.0,1.03239532]
[1748444692487,0.00013952,107590.0,107580.0,0.1858365]
[1748444692682,0.00013952,107590.0,107580.0,1.20271237]
[1748444692990,0.00013952,107590.0,107580.0,1.54566037]
[1748444693790,0.00413952,107590.0,107580.0,1.54662904]
[1748444694287,0.00413952,107590.0,107580.0,1.53210708]
[1748444694588,0.00313952,107590.0,107580.0,1.54681811]
[1748444694790,0.00213952,107590.0,107580.0,1.54681818]
[1748444695291,0.3608,107610.0,107580.0,1.54681745]
[1748444695586,0.3608,107610.0,107600.0,0.185802]
[1748444695587,0.546585,107610.0,107600.0,0.185802]
[1748444695785,0.546585,107610.0,107600.0,0.31761358]
[1748444695983,0.3608,107620.0,107610.0,0.1857847]
[1748444696183,0.5465674,107620.0,107610.0,0.27559628]
[1748444696385,0.5465674,107620.0,107610.0,0.27559504]
[1748444696973,0.5465674,107620.0,107610.0,0.2755946]
[1748444697190,0.5465674,107620.0,107610.0,0.27559528]
[1748444697387,0.6116674,107620.0,107610.0,0.27659528]
[1748444697580,0.6116674,107620.0,107610.0,0.38299528]
[1748444697890,0.6146674,107620.0,107610.0,0.38299528]
[1748444698388,0.6146674,107620.0,107610.0,0.02641129]
[1748444698579,0.6454674,107620.0,107610.0,0.21219828]
[1748444698781,0.6146674,107620.0,107610.0,0.24469772]
[1748444698984,0.6146674,107620.0,107610.0,0.27599695]
[1748444699683,0.5525674,107620.0,107610.0,0.27599695]
[1748444700277,0.5825674,107620.0,107610.0,0.27599695]
[1748444700483,0.5825674,107620.0,107610.0,0.27599665]
[1748444700685,0.6151674,107620.0,107610.0,0.27599665]
[1748444700882,0.3968,107620.0,107610.0,0.27599665]
[1748444701189,0.3668,107620.0,107610.0,0.27599665]
[1748444701387,0.3668,107620.0,107610.0,0.2505848]
[1748444701693,0.3668,107620.0,107610.0,0.27599433]
[1748444702091,0.3668,107620.0,107610.0,0.27599455]
[1748444702385,0.3668,107620.0,107610.0,0.27599485]
[1748444702588,0.36093952,107630.0,107610.0,0.09021005]
[1748444702785,0.00013952,107630.0,107620.0,0.3225675]
[1748444703093,0.00013952,107630.0,107620.0,0.80169355]
[1748444703286,0.00013952,107630.0,107620.0,0.79080353]
[1748444703587,0.00013952,107630.0,107620.0,0.42637102]
[1748444703795,0.00813952,107630.0,107620.0,0.44088772]
[1748444703991,0.00813952,107630.0,107620.0,0.43000019]
[1748444704287,0.00413952,107630.0,107620.0,0.80168778]
[1748444704491,0.00113952,107630.0,107620.0,0.47398778]
[1748444704987,0.36193952,107630.0,107620.0,0.4505835]
[1748444705186,0.54768982,107630.0,107620.0,0.3576675]
[1748444705393,0.54768982,107630.0,107620.0,0.02840525]
[1748444705687,0.64358982,107630.0,107620.0,0.02840719]
[1748444705894,0.64358982,107630.0,107620.0,0.02841042]
[1748444706485,0.64358982,107630.0,107620.0,0.003]
[1748444706680,0.64358982,107630.0,107620.0,0.02841121]
[1748444706889,0.64358982,107630.0,107620.0,0.02941121]
[1748444706890,1.08274982,107630.0,107620.0,0.02941121]
[1748444707300,1.08274982,107630.0,107620.0,0.02941126]
[1748444707801,1.08274982,107630.0,107620.0,0.02941161]
[1748444708489,1.08274982,107630.0,107620.0,0.02941219]
[1748444708688,1.08274982,107630.0,107620.0,0.02941299]
[1748444708888,1.08274982,107630.0,107620.0,0.02941354]
[1748444709498,1.08274982,107630.0,107620.0,0.02941301]
[1748444709797,1.08274982,107630.0,107620.0,0.02941297]
[1748444710589,1.08274982,107630.0,107620.0,0.02941288]
[1748444711185,1.17566582,107630.0,107620.0,0.01852172]
[1748444711397,1.17566582,107630.0,107620.0,0.02941358]
[1748444711398,1.18566582,107630.0,107620.0,0.02941358]
[1748444712196,1.18566582,107630.0,107620.0,0.01489153]
[1748444712496,1.18566582,107630.0,107620.0,0.02941384]
[1748444712793,1.18566582,107630.0,107620.0,0.02941382]
[1748444713599,1.18566582,107630.0,107620.0,0.004]
[1748444713899,1.22877351,107630.0,107620.0,0.02941434]
[1748444714091,1.22877351,107630.0,107620.0,0.029415]
[1748444714493,1.28659682,107630.0,107620.0,0.029415]
[1748444714696,1.28659682,107630.0,107620.0,0.02941501]
[1748444715199,1.28659682,107630.0,107620.0,0.02941478]
[1748444715499,1.28659682,107630.0,107620.0,0.02941481]
[1748444715898,1.28659682,107630.0,107620.0,0.02941448]
[1748444716091,1.28659682,107630.0,107620.0,0.02941416]
[1748444716493,1.15057313,107630.0,107620.0,0.02941446]
[1748444716688,1.15013313,107630.0,107620.0,0.02941446]
[1748444716906,1.15013313,107630.0,107620.0,0.02941438]
[1748444717208,1.15013313,107630.0,107620.0,0.0294141]
[1748444717500,1.23614857,107630.0,107620.0,0.02941417]
[1748444718401,1.32906457,107630.0,107620.0,0.004]
[1748444718592,1.17832526,107630.0,107620.0,0.02541502]
[1748444719499,0.1857848,107610.0,107600.0,0.0016335]
[1748444719804,0.07738679,107620.0,107610.0,0.1857848]
[1748444720003,0.45066251,107630.0,107620.0,0.1857676]
[1748444720004,0.39273952,107630.0,107620.0,0.1857676]
[1748444720304,0.00413952,107630.0,107620.0,0.24358035]
[1748444720493,0.00413952,107630.0,107620.0,0.27608035]
[1748444720798,0.00413952,107630.0,107620.0,0.27607345]
[1748444720799,0.00213952,107630.0,107620.0,0.27607345]
[1748444721198,0.00213952,107630.0,107620.0,0.31050392]
[1748444721502,0.00213952,107630.0,107620.0,0.31150392]
[1748444721800,0.00213952,107630.0,107620.0,0.31150403]
[1748444722001,0.00013952,107630.0,107620.0,0.31050403]
[1748444722300,0.00013952,107630.0,107620.0,0.31050415]
[1748444722500,0.00013952,107630.0,107620.0,0.3105042]
[1748444722696,0.36093952,107630.0,107620.0,0.31050461]
[1748444722901,0.36193952,107630.0,107620.0,0.31150461]
[1748444723095,0.36193952,107630.0,107620.0,0.30061603]
[1748444723301,0.36193952,107630.0,107620.0,0.31150464]
[1748444723604,0.18689032,107630.0,107620.0,0.31150472]
[1748444724305,0.18689032,107630.0,107620.0,0.3115046]
[1748444724494,0.18689032,107630.0,107620.0,0.31150425]
[1748444724697,0.21829032,107630.0,107620.0,0.31150432]
[1748444725095,0.21829032,107630.0,107620.0,0.41774432]
[1748444725499,0.21829032,107630.0,107620.0,0.40685597]
[1748444725694,0.21829032,107630.0,107620.0,0.4205244]
[1748444725894,0.20957956,107630.0,107620.0,0.42052442]
[1748444726402,0.57037956,107630.0,107620.0,0.06461682]
[1748444726593,0.73571807,107630.0,107620.0,0.06461682]
[1748444726793,0.69240255,107630.0,107620.0,0.03018635]
[1748444727100,0.77841799,107630.0,107620.0,0.03018635]
[1748444727489,0.77841799,107630.0,107620.0,0.0301909]
[1748444727708,0.77841799,107630.0,107620.0,0.03019088]
[1748444728000,0.77841799,107630.0,107620.0,0.03019392]
[1748444728502,1.20838072,107630.0,107620.0,0.03019151]
[1748444728695,0.54703099,107630.0,107620.0,0.24895961]
[1748444728899,0.15483099,107630.0,107620.0,0.28135961]
[1748444729100,0.08399775,107630.0,107620.0,0.31578809]
[1748444729407,0.0794822,107630.0,107620.0,0.7287059]
[1748444729598,0.0794822,107630.0,107620.0,0.3679059]
[1748444729799,0.0794822,107630.0,107620.0,0.35701724]
[1748444730001,0.42673952,107640.0,107630.0,0.1857508]
[1748444730196,0.42673952,107640.0,107630.0,0.30769754]
[1748444730703,0.42673952,107640.0,107630.0,0.30767382]
[1748444730905,0.42673952,107640.0,107630.0,0.30767241]
[1748444731305,0.61247302,107640.0,107630.0,0.29686805]
[1748444731606,0.61347302,107640.0,107630.0,0.30767162]
[1748444731805,0.61447302,107640.0,107630.0,0.30767162]
[1748444732000,0.61447302,107640.0,107630.0,0.29686805]
[1748444732200,0.61447302,107640.0,107630.0,0.30767095]
[1748444732501,0.61447302,107640.0,107630.0,0.30767094]
[1748444732700,0.61447302,107640.0,107630.0,0.6431508]
[1748444732701,0.00213952,107640.0,107630.0,0.6431508]
[1748444732906,0.00213952,107640.0,107630.0,0.74050066]
[1748444733105,0.00213952,107640.0,107630.0,0.7550168]
[1748444733301,0.00213952,107640.0,107630.0,0.3942168]
[1748444733605,0.18787302,107640.0,107630.0,0.44845869]
[1748444733797,0.18787302,107640.0,107630.0,0.44845867]
[1748444733993,0.18687302,107640.0,107630.0,0.44845873]
[1748444734503,0.18687302,107640.0,107630.0,0.43765757]
[1748444734804,0.18687302,107640.0,107630.0,0.44845839]
[1748444735000,0.18251809,107640.0,107630.0,0.44845839]
[1748444735195,0.18251809,107640.0,107630.0,0.44833624]
[1748444735398,0.18251809,107640.0,107630.0,0.44933624]
[1748444735797,0.18251809,107640.0,107630.0,0.42414127]
[1748444736002,0.18251809,107640.0,107630.0,0.44933412]
[1748444736401,0.73468427,107650.0,107640.0,0.1857335]
[1748444736603,0.70138427,107650.0,107640.0,0.27261947]
[1748444736799,0.29415357,107650.0,107640.0,0.27261947]
[1748444737307,0.65495357,107650.0,107640.0,0.27261947]
[1748444737703,0.65595357,107650.0,107640.0,0.02518238]
[1748444737895,0.79601589,107650.0,107640.0,0.02518393]
[1748444738096,0.1857335,107640.0,107630.0,0.2515503]
[1748444738295,0.59211739,107650.0,107630.0,0.2735352]
[1748444738500,1.25028979,107650.0,107640.0,0.2157335]
[1748444738695,1.25028979,107650.0,107640.0,0.24091623]
[1748444739207,1.25028979,107650.0,107640.0,0.24091613]
[1748444739414,1.25028979,107650.0,107640.0,0.24090835]
[1748444739608,1.25028979,107650.0,107640.0,0.24090819]
[1748444739808,1.20678747,107650.0,107640.0,0.24090819]
[1748444740303,1.15052441,107650.0,107640.0,0.2411381]
[1748444740809,1.15052441,107650.0,107640.0,0.24113799]
[1748444741106,1.15152441,107650.0,107640.0,0.24113799]
[1748444741308,1.15136441,107650.0,107640.0,0.24113799]
[1748444741704,1.15236441,107650.0,107640.0,0.24113799]
[1748444741902,0.66641481,107650.0,107640.0,0.24113799]
[1748444742203,0.61998561,107650.0,107640.0,0.24113799]
[1748444742509,0.58768561,107650.0,107640.0,0.2411376]
[1748444742703,0.58768561,107650.0,107640.0,0.24113759]
[1748444742898,0.36965321,107650.0,107640.0,0.2157335]
[1748444743099,0.36965321,107650.0,107640.0,0.2411375]
[1748444743297,0.36293952,107650.0,107640.0,0.2411375]
[1748444743503,0.00213952,107650.0,107640.0,0.4403535]
[1748444743805,0.00213952,107650.0,107640.0,0.88770178]
[1748444744105,0.00213952,107650.0,107640.0,0.85326882]
[1748444744302,0.00213952,107650.0,107640.0,0.85326885]
[1748444744506,0.00213952,107650.0,107640.0,0.84238142]
[1748444744709,0.00113952,107650.0,107640.0,0.85526714]
[1748444745102,0.00113952,107650.0,107640.0,1.29750714]
[1748444745304,0.36219384,107670.0,107660.0,0.185699]
[1748444745504,0.55979001,107670.0,107660.0,0.21444711]
[1748444745704,0.55979001,107670.0,107660.0,0.2458461]
[1748444746108,0.61478211,107670.0,107660.0,0.2458461]
[1748444746703,0.61578211,107670.0,107660.0,0.2458461]
[1748444746914,0.61678211,107670.0,107660.0,0.24584532]
[1748444747508,0.6259562,107670.0,107660.0,0.24584532]
[1748444747916,0.2651562,107670.0,107660.0,0.24584532]
[1748444748108,0.002,107670.0,107660.0,0.24584507]
[1748444748309,0.002,107670.0,107660.0,0.37234324]
[1748444748508,0.002,107670.0,107660.0,0.43897315]
[1748444748714,0.1876818,107670.0,107660.0,0.38685534]
[1748444749016,0.1876818,107670.0,107660.0,0.5093747]
[1748444749205,0.1866818,107670.0,107660.0,0.50937472]
[1748444749406,0.1866818,107670.0,107660.0,0.51237472]
[1748444749407,0.1876818,107670.0,107660.0,0.51237472]
[1748444749608,0.00551555,107670.0,107660.0,0.44197219]
[1748444749911,0.00551555,107670.0,107660.0,0.92247858]
[1748444750214,0.0011623,107670.0,107660.0,0.86295922]
[1748444750511,0.0011623,107670.0,107660.0,0.86295951]
[1748444750815,0.0011623,107670.0,107660.0,1.30223951]
[1748444751213,0.0011623,107670.0,107660.0,2.80223951]
[1748444751412,0.0011623,107670.0,107660.0,2.44144013]
[1748444751813,0.0011623,107670.0,107660.0,2.80224013]
[1748444752110,0.69754458,107680.0,107670.0,0.1856817]
[1748444752306,0.60471008,107680.0,107670.0,0.27147656]
[1748444752507,0.60471008,107680.0,107670.0,0.27296481]
[1748444752715,0.41904228,107680.0,107670.0,0.3076338]
[1748444752912,0.3608,107680.0,107670.0,0.3076338]
[1748444753114,0.3927,107690.0,107680.0,0.1856645]
[1748444753309,0.2175472,107690.0,107680.0,0.34737927]
[1748444753510,0.0319,107690.0,107680.0,0.34886752]
[1748444753709,0.0319,107690.0,107680.0,0.74433651]
[1748444753910,0.2175472,107690.0,107680.0,0.74433651]
[1748444754210,0.2175472,107690.0,107680.0,0.7443343]
[1748444754415,0.2175472,107690.0,107680.0,0.7766343]
[1748444754618,0.2185472,107690.0,107680.0,0.4186143]
[1748444755114,0.2185472,107690.0,107680.0,0.7794143]
[1748444755416,0.2517472,107690.0,107680.0,0.74474531]
[1748444755613,0.2517472,107690.0,107680.0,0.74474548]
[1748444755914,0.2517472,107690.0,107680.0,0.38494548]
[1748444756311,0.2517472,107690.0,107680.0,0.38494575]
[1748444757019,0.0661,107690.0,107680.0,0.38494575]
[1748444757216,0.2517473,107690.0,107680.0,0.38494575]
[1748444757422,0.2517473,107690.0,107680.0,0.74574571]
[1748444757715,0.2517473,107690.0,107680.0,0.74574545]
[1748444758016,0.0661,107690.0,107680.0,0.74574402]
[1748444758218,0.4608,107700.0,107690.0,0.1856473]
[1748444758521,0.64643,107700.0,107690.0,0.30633487]
[1748444758709,1.08527,107700.0,107690.0,0.02687936]
[1748444758911,1.08527,107700.0,107690.0,0.02688385]
[1748444759317,0.64743,107700.0,107690.0,0.21207468]
[1748444759720,1.08955,107700.0,107690.0,0.24387468]
[1748444759925,1.13271359,107700.0,107690.0,0.24387468]
[1748444760221,1.12971359,107700.0,107690.0,0.02640076]
[1748444760417,1.08955,107700.0,107690.0,0.21204796]
[1748444760612,1.08955,107700.0,107690.0,0.02640076]
[1748444760813,1.08955,107700.0,107690.0,0.21204796]
[1748444761018,1.08955,107700.0,107690.0,0.21204899]
[1748444761224,1.12235,107700.0,107690.0,0.21204899]
[1748444761425,1.15335,107700.0,107690.0,0.21204899]
[1748444762022,1.15335,107700.0,107690.0,0.21205022]
[1748444762216,1.15335,107700.0,107690.0,0.2120502]
[1748444762520,1.15335,107700.0,107690.0,0.20164655]
[1748444762728,1.15335,107700.0,107690.0,0.18713545]
[1748444763517,1.15335,107700.0,107690.0,0.19754062]
[1748444763821,1.1528699,107700.0,107690.0,0.19754059]
[1748444764021,1.1528699,107700.0,107690.0,0.18713545]
[1748444764230,0.5286,107700.0,107690.0,0.21833545]
[1748444764524,1.1533099,107700.0,107690.0,0.21833545]
[1748444764716,1.1533099,107700.0,107690.0,0.23284572]
[1748444764917,1.15782545,107700.0,107690.0,0.21833545]
[1748444765426,0.71874545,107700.0,107690.0,0.02640411]
[1748444765721,0.71874545,107700.0,107690.0,0.18713545]
[1748444766324,0.71874545,107700.0,107690.0,0.22023545]
[1748444766724,0.71874545,107700.0,107690.0,0.23064163]
[1748444767025,0.71874545,107700.0,107690.0,0.22023545]
[1748444767411,0.53311555,107700.0,107690.0,0.22023545]
[1748444767818,0.71874545,107700.0,107690.0,0.30785205]
[1748444768020,0.71874545,107700.0,107690.0,0.28293545]
[1748444768228,0.71874545,107700.0,107690.0,0.29334204]
[1748444768412,0.71874545,107700.0,107690.0,0.28293545]
[1748444768926,0.71874545,107700.0,107690.0,0.00148825]
[1748444769124,1.15826545,107700.0,107690.0,0.01189791]
[1748444769317,1.25818134,107700.0,107690.0,0.00148825]
[1748444769528,0.77246844,107700.0,107690.0,0.00148825]
[1748444769821,0.77246844,107700.0,107690.0,0.01599949]
[1748444769822,1.1985897,107700.0,107690.0,0.01599949]
[1748444770014,1.10184571,107700.0,107690.0,0.0159994]
[1748444770220,0.1856472,107690.0,107680.0,0.00278]
[1748444770522,0.6085472,107690.0,107680.0,0.00278]
[1748444770719,0.66627019,107690.0,107680.0,0.0131959]
[1748444770926,0.7527647,107690.0,107680.0,0.00278]
[1748444772021,1.2992047,107690.0,107680.0,0.00278]
[1748444772425,1.10675019,107690.0,107680.0,0.00478]
[1748444772621,1.09231288,107690.0,107680.0,0.00478]
[1748444772822,0.65183288,107690.0,107680.0,0.00478]
[1748444773017,0.65183288,107690.0,107680.0,0.1904445]
[1748444773227,0.6085472,107690.0,107680.0,0.2554445]
[1748444773528,0.69423433,107700.0,107690.0,0.1856483]
[1748444773826,0.75673233,107700.0,107690.0,0.28531729]
[1748444774032,0.74802615,107700.0,107690.0,0.11015257]
[1748444774220,0.74802615,107700.0,107690.0,0.29580087]
[1748444774532,0.74367305,107700.0,107690.0,0.04358358]
[1748444775030,0.74367305,107700.0,107690.0,0.22923178]
[1748444775220,0.74367305,107700.0,107690.0,0.26113178]
[1748444775622,0.74367305,107700.0,107690.0,0.22963042]
[1748444776020,0.74367305,107700.0,107690.0,0.04398232]
[1748444776326,0.1856482,107690.0,107680.0,0.00278]
[1748444776514,1.1867282,107690.0,107680.0,0.01366331]
[1748444776715,1.23006009,107690.0,107680.0,0.01366331]
[1748444776937,1.23006009,107690.0,107680.0,0.04456325]
[1748444777530,1.23006009,107690.0,107680.0,0.04656325]
[1748444778325,1.23006009,107690.0,107680.0,0.04856325]
[1748444778625,1.23006009,107690.0,107680.0,0.05042328]
[1748444779222,1.23118009,107690.0,107680.0,0.23608878]
[1748444779423,0.46683189,107690.0,107680.0,0.23608878]
[1748444779629,0.46683189,107690.0,107680.0,0.33355743]
[1748444779630,0.3608,107690.0,107680.0,0.33355743]
[1748444779928,0.35427051,107690.0,107680.0,0.37483466]
[1748444780129,0.35008022,107690.0,107680.0,0.38571697]
[1748444780632,0.53572842,107690.0,107680.0,0.38571697]
[1748444781026,0.35008022,107690.0,107680.0,0.45577225]
[1748444781323,0.53572842,107690.0,107680.0,0.45577225]
[1748444781828,0.36531555,107690.0,107680.0,0.45577225]
[1748444782224,0.36531555,107690.0,107680.0,0.47028233]
[1748444782432,0.00451555,107690.0,107680.0,0.81887593]
[1748444782630,0.00451555,107690.0,107680.0,0.72601193]
[1748444782832,0.00451555,107690.0,107680.0,0.72598801]
[1748444783232,0.00451555,107690.0,107680.0,0.72598819]
[1748444783535,0.00451555,107690.0,107680.0,0.8137423]
[1748444783734,0.72619132,107700.0,107690.0,0.1856482]
[1748444783735,0.08031302,107700.0,107690.0,0.1856482]
[1748444783937,0.08031302,107700.0,107690.0,0.79122635]
[1748444784322,0.26594402,107700.0,107690.0,1.93042635]
[1748444784528,0.26594402,107700.0,107690.0,1.60875815]
[1748444784729,0.26594402,107700.0,107690.0,1.80852231]
[1748444785027,0.08031302,107700.0,107690.0,0.63456933]
[1748444785422,0.08031302,107700.0,107690.0,2.20497088]
[1748444785629,0.26594402,107700.0,107690.0,2.20814579]
[1748444785828,0.26594402,107700.0,107690.0,2.12283972]
[1748444786037,0.08031302,107700.0,107690.0,2.12683648]
[1748444786236,0.08031302,107700.0,107690.0,2.20810941]
[1748444786425,0.08031302,107700.0,107690.0,2.19761]
[1748444786731,0.08031302,107700.0,107690.0,2.30296508]
[1748444787332,0.08031302,107700.0,107690.0,2.37247917]
[1748444787537,0.4706999,107720.0,107710.0,0.1856138]
[1748444787538,0.5928054,107720.0,107710.0,0.1856138]
[1748444787735,0.5928054,107720.0,107710.0,0.24534192]
[1748444787928,0.2959054,107720.0,107710.0,0.3076362]
[1748444788128,0.2320054,107720.0,107710.0,0.6684362]
[1748444788439,0.2320054,107720.0,107710.0,0.72051812]
[1748444788637,0.1856055,107720.0,107710.0,0.72051812]
[1748444788837,0.79429997,107730.0,107720.0,0.1855966]
[1748444789137,0.79429997,107730.0,107720.0,0.30359743]
[1748444789327,0.79429997,107730.0,107720.0,0.11800083]
[1748444789530,0.79429997,107730.0,107720.0,0.05590083]
[1748444789729,0.79429997,107730.0,107720.0,0.02500083]
[1748444789930,0.79629997,107730.0,107720.0,0.02499576]
[1748444790138,0.83957879,107730.0,107720.0,0.02499576]
[1748444790339,0.79629997,107730.0,107720.0,0.05589576]
[1748444790538,0.79629997,107730.0,107720.0,0.05589659]
[1748444790737,0.79629997,107730.0,107720.0,0.0309]
[1748444790938,0.79629997,107730.0,107720.0,0.05589616]
[1748444791140,0.79629997,107730.0,107720.0,0.05589598]
[1748444791335,0.79829997,107730.0,107720.0,0.24149292]
[1748444791540,0.79829997,107730.0,107720.0,0.05589642]
[1748444792435,0.79829997,107730.0,107720.0,0.024996]
[1748444792939,0.84157879,107730.0,107720.0,0.024996]
[1748444793142,0.1856137,107710.0,107700.0,0.18576762]
[1748444793437,0.95044628,107710.0,107700.0,0.24386424]
[1748444793633,1.04474628,107710.0,107700.0,0.24386681]
[1748444793841,1.0015137,107710.0,107700.0,0.05823591]
[1748444794237,1.0015137,107710.0,107700.0,0.07824863]
[1748444794437,1.0015137,107710.0,107700.0,0.27436812]
[1748444794737,1.0015137,107710.0,107700.0,0.12193683]
[1748444795131,1.0015137,107710.0,107700.0,0.12293683]
[1748444795331,1.0015137,107710.0,107700.0,0.12493683]
[1748444795526,1.0015137,107710.0,107700.0,0.06123684]
[1748444795738,1.0015137,107710.0,107700.0,0.06123694]
[1748444796038,1.4435537,107710.0,107700.0,0.23236049]
[1748444796337,1.4435537,107710.0,107700.0,0.27736929]
[1748444796633,1.4435537,107710.0,107700.0,0.30816951]
[1748444797634,1.4435537,107710.0,107700.0,0.12253861]
[1748444798137,1.0015137,107710.0,107700.0,0.1225403]
[1748444798341,1.0015137,107710.0,107700.0,0.3081712]
[1748444798535,1.0015137,107710.0,107700.0,0.1225403]
[1748444798737,1.0015137,107710.0,107700.0,0.30817138]
[1748444798935,1.0015137,107710.0,107700.0,0.12254048]
[1748444799241,1.0015137,107710.0,107700.0,0.30818376]
[1748444799429,1.0015137,107710.0,107700.0,0.28317042]
[1748444799635,1.0015137,107710.0,107700.0,0.12255297]
[1748444799831,1.0015137,107710.0,107700.0,0.1080436]
[1748444800041,1.0015137,107710.0,107700.0,0.30818371]
[1748444800232,1.0015137,107710.0,107700.0,0.29767985]
[1748444800435,1.0015137,107710.0,107700.0,0.30818421]
[1748444800734,1.0015137,107710.0,107700.0,0.06125331]
[1748444801935,1.0015137,107710.0,107700.0,0.06311549]
[1748444802338,1.0015137,107710.0,107700.0,0.03001551]
[1748444802533,1.2022817,107710.0,107700.0,0.01450999]
[1748444802734,1.2022817,107710.0,107680.0,0.03472076]
[1748444802735,0.1856482,107690.0,107680.0,0.03472076]
[1748444803032,0.1856826,107670.0,107660.0,0.13131779]
[1748444803235,0.3608,107670.0,107660.0,0.31701769]
[1748444803433,0.3870357,107680.0,107670.0,0.1856826]
[1748444803434,0.3608,107680.0,107670.0,0.1856826]
[1748444803627,0.5464654,107680.0,107670.0,0.2461826]
[1748444804428,0.5464654,107680.0,107670.0,0.2489626]
[1748444804937,0.3608,107680.0,107670.0,0.2489626]
[1748444805240,0.69815423,107690.0,107680.0,0.1856654]
[1748444805241,0.3613113,107690.0,107680.0,0.1856654]
[1748444805441,0.3613113,107690.0,107680.0,0.2806654]
[1748444805828,0.0005113,107690.0,107680.0,0.2806654]
[1748444806143,0.0005113,107690.0,107680.0,0.2796654]
[1748444806346,0.0025113,107690.0,107680.0,0.2776654]
[1748444806734,0.0025113,107690.0,107680.0,0.6384654]
[1748444807435,0.0025113,107690.0,107680.0,1.1888654]
[1748444807738,0.36219354,107700.0,107690.0,0.1856482]
[1748444807930,0.00102176,107700.0,107690.0,0.25051998]
[1748444808138,0.00102176,107700.0,107690.0,0.33631739]
[1748444808443,0.54745276,107700.0,107690.0,0.30571739]
[1748444808744,0.53874642,107700.0,107690.0,0.25363469]
[1748444808938,0.53874642,107700.0,107690.0,0.28563469]
[1748444809247,0.53974642,107700.0,107690.0,0.28563469]
[1748444809646,0.001,107700.0,107690.0,0.33771739]
[1748444809945,0.3608,107700.0,107690.0,0.33871739]
[1748444810142,0.6392383,107710.0,107700.0,0.185631]
[1748444810338,0.6392383,107710.0,107700.0,0.282031]
[1748444811741,0.6392383,107710.0,107700.0,0.30907666]
[1748444812645,0.5464136,107710.0,107700.0,0.30907666]
[1748444813146,0.5464136,107710.0,107700.0,0.34379137]
[1748444813938,0.3608,107710.0,107700.0,0.34379137]
[1748444814641,0.3608,107710.0,107700.0,0.36918459]
[1748444814835,0.3608,107710.0,107700.0,0.36918471]
[1748444815436,0.3937,107710.0,107700.0,0.36918471]
[1748444815637,0.3937,107710.0,107700.0,0.36918474]
[1748444815845,0.3608,107710.0,107700.0,0.36918474]
[1748444816044,0.7185173,107720.0,107710.0,0.1856135]
[1748444816241,0.7185173,107720.0,107710.0,0.29925025]
[1748444816646,0.6257117,107720.0,107710.0,0.29925025]
[1748444817038,0.6257117,107720.0,107710.0,0.27385873]
[1748444817243,0.6257117,107720.0,107710.0,0.29924983]
[1748444817548,0.6257117,107720.0,107710.0,0.33396435]
[1748444817744,0.6287117,107720.0,107710.0,0.33396615]
[1748444818141,0.6595117,107720.0,107710.0,0.33396615]
[1748444818547,0.6595117,107720.0,107710.0,0.33396549]
[1748444818850,0.6595117,107720.0,107710.0,0.05144037]
[1748444819148,0.6595117,107720.0,107710.0,0.05143915]
[1748444819149,1.1011917,107720.0,107710.0,0.05143915]